[Event "Catalan Youth-ch 2020"]
[Site "Salou"]
[Date "2020.09.05"]
[Round "1.6"]
[White "Muntal Corrales, Arnau"]
[Black "Vives Pararols, Arnau"]
[Result "1-0"]
[ECO "E81"]
[WhiteElo "1812"]
[BlackElo "1208"]
[Annotator "NA"]
[PlyCount "133"]
[EventDate "2020.09.07"]
[EventType "swiss"]
[EventCountry "ESP"]
[SourceTitle "playchess.com"]
[Source "ChessBase"]
[SourceQuality "1"]
[TimeControl "5400+30"]

1. d4 {[%emt 0:00:00]} Nf6 {[%emt 0:00:41]} 2. c4 {[%emt 0:00:48]} g6 {[%emt 0:00:47]} 3. Nc3 {[%emt 0:00:28]} Bg7 {[%emt 0:00:00]} 4. e4 {[%emt 0:01:09]} d6 {[%emt 0:00:43]} 5. f3 {[%emt 0:01:56]} O-O {[%emt 0:01:42]} 6. Be3 {[%emt 0:01:26]} Nbd7 {[%emt 0:07:34]} 7. Nge2 {[%emt 0:07:51]} Nb6 {[%emt 0:11:34]} 8. b3 {[%emt 0:12:20]} Nbd7 {[%emt 0:04:57]} 9. Qd2 {[%emt 0:04:51]} b6 {[%emt 0:09:15]} 10. g4 {[%emt 0:06:38]} c5 {[%emt 0:12:38]} 11. h4 {[%emt 0:02:44]} h5 {[%emt 0:08:00]} 12. O-O-O {[%emt 0:03:23]} Bb7 {[%emt 0:08:51]} 13. Bh3 {[%emt 0:07:10]} e6 {[%emt 0:03:03]} 14. gxh5 {[%emt 0:00:58]} Nxh5 {[%emt 0:02:33]} 15. Bg4 {[%emt 0:04:45]} Ndf6 {[%emt 0:05:21]} 16. d5 {[%emt 0:04:49]} exd5 {[%emt 0:00:00]} 17. exd5 {[%emt 0:03:04]} Bc8 {[%emt 0:01:57]} 18. Bg5 {[%emt 0:07:22]} Qe8 {[%emt 0:02:38]} 19. Rde1 {[%emt 0:01:06]} Nxg4 {[%emt 0:08:27]} 20. Nf4 {[%emt 0:02:55]} Ne5 {[%emt 0:01:44]} 21. Nxh5 {[%emt 0:01:40]} gxh5 {[%emt 0:08:25]} 22. f4 {[%emt 0:03:50]} Nf3 {[%emt 0:00:15]} 23. Rxe8 {[%emt 0:14:03]} Nxd2 {[%emt 0:00:00]} 24. Rxf8+ {[%emt 0:00:06]} Kxf8 {[%emt 0:00:00]} 25. Kxd2 {[%emt 0:00:52]} f6 {[%emt 0:01:35]} 26. Ne4 {[%emt 0:01:12]} fxg5 {[%emt 0:00:40]} 27. hxg5 {[%emt 0:00:05]} Bg4 {[%emt 0:00:00]} 28. Nxd6 {[%emt 0:02:32]} Rd8 {[%emt 0:00:08]} 29. Ne4 {[%emt 0:00:31]} Bf3 {[%emt 0:00:10]} 30. Re1 {[%emt 0:00:00]} Bxe4 {[%emt 0:00:00]} 31. Rxe4 {[%emt 0:00:44]} Kf7 {[%emt 0:00:00]} 32. f5 {[%emt 0:00:31]} Rh8 {[%emt 0:01:14]} 33. Rh4 {[%emt 0:01:23]} Bf6 {[%emt 0:01:36]} 34. gxf6 {[%emt 0:00:47]} Kxf6 {[%emt 0:01:02]} 35. Rf4 {[%emt 0:00:19]} h4 {[%emt 0:00:32]} 36. Ke3 {[%emt 0:00:30]} h3 {[%emt 0:00:00]} 37. Rf1 {[%emt 0:00:03]} h2 {[%emt 0:00:00]} 38. Rh1 {[%emt 0:00:14]} Kxf5 {[%emt 0:00:13]} 39. Kf3 {[%emt 0:00:28]} Ke5 {[%emt 0:00:00]} 40. Kg3 {[%emt 0:00:18]} Rg8+ {[%emt 0:00:00]} 41. Kxh2 {[%emt 0:00:22]} Rh8+ {[%emt 0:00:00]} 42. Kg2 {[%emt 0:00:05]} Rxh1 {[%emt 0:00:00]} 43. Kxh1 {[%emt 0:00:03]} a6 {[%emt 0:00:13]} 44. Kg2 {[%emt 0:00:09]} b5 {[%emt 0:00:48]} 45. Kf3 {[%emt 0:01:03]} Kf5 {[%emt 0:01:10]} 46. Ke2 {[%emt 0:00:31]} Kf6 {[%emt 0:02:26]} 47. Kf3 {[%emt 0:02:22]} Kf5 {[%emt 0:00:21]} 48. Kg3 {[%emt 0:00:26]} Ke5 {[%emt 0:00:00]} 49. Kg4 {[%emt 0:01:11]} b4 {[%emt 0:00:00]} 50. Kg5 {[%emt 0:00:30]} a5 {[%emt 0:00:00]} 51. Kg6 {[%emt 0:00:12]} Kd6 {[%emt 0:00:00]} 52. Kf6 {[%emt 0:00:00]} Kd7 53. Ke5 {[%emt 0:01:18]} Ke7 {[%emt 0:00:00]} 54. d6+ {[%emt 0:00:00]} Kd7 {[%emt 0:00:31]} 55. Kd5 {[%emt 0:00:00]} Kd8 {[%emt 0:00:00]} 56. Kxc5 {[%emt 0:00:00]} Kd7 {[%emt 0:00:00]} 57. Kb6 {[%emt 0:00:00]} Kxd6 {[%emt 0:00:00]} 58. c5+ {[%emt 0:00:22]} Kd5 {[%emt 0:00:45]} 59. c6 {[%emt 0:00:06]} Kd4 {[%emt 0:01:18]} 60. c7 {[%emt 0:00:21]} Kc3 {[%emt 0:00:00]} 61. Kxa5 {[%emt 0:00:52]} Kb2 {[%emt 0:00:00]} 62. Kxb4 {[%emt 0:00:27]} Kxa2 {[%emt 0:00:00]} 63. c8=Q {[%emt 0:00:00]} Kb2 {[%emt 0:00:35]} 64. Qc3+ {[%emt 0:00:41]} Ka2 {[%emt 0:00:00]} 65. Qd2+ {[%emt 0:00:00]} Kb1 {[%emt 0:00:00]} 66. Ka3 {[%emt 0:00:00]} Ka1 {[%emt 0:00:13]} 67. Qc1# {[%emt 0:00:17]} 1-0

[Event "Catalan Youth-ch 2020"]
[Site "Salou"]
[Date "2020.09.05"]
[Round "1.6"]
[White "Pujol Biosca, Joan"]
[Black "Prats Safont, Sergi"]
[Result "1-0"]
[ECO "B06"]
[WhiteElo "1697"]
[BlackElo "2103"]
[Annotator "ChessBase"]
[PlyCount "89"]
[EventDate "2020.09.07"]
[EventType "swiss"]
[EventCountry "ESP"]
[SourceTitle "playchess.com"]
[Source "ChessBase"]
[SourceQuality "1"]
[TimeControl "5400+30"]

1. e4 {[%emt 0:00:00]} d6 {[%emt 0:00:30]} 2. d4 {[%emt 0:00:05]} g6 {[%emt 0:01:14]} 3. f4 {[%emt 0:00:26]} Bg7 {[%emt 0:01:00]} 4. Nf3 {[%emt 0:02:38]} a6 5. Be2 {[%emt 0:05:55]} b5 {[%emt 0:03:12]} 6. c3 {[%emt 0:00:34]} Bb7 {[%emt 0:00:37]} 7. Nbd2 {[%emt 0:01:30]} Nd7 {[%emt 0:02:22]} 8. O-O {[%emt 0:01:41]} Ngf6 {[%emt 0:05:12]} 9. Bd3 {[%emt 0:03:42]} O-O 10. b3 {[%emt 0:01:17]} c5 {[%emt 0:01:56]} 11. Bb2 {[%emt 0:04:44]} Qb6 {[%emt 0:13:47]} 12. Kh1 e5 {[%emt 0:18:08]} 13. fxe5 {[%emt 0:00:38]} dxe5 {[%emt 0:00:44]} 14. d5 {[%emt 0:13:27]} Nh5 {[%emt 0:03:41]} 15. Qc2 {[%emt 0:08:04]} Rae8 {[%emt 0:12:57]} 16. c4 {[%emt 0:12:26]} b4 17. Rae1 {[%emt 0:08:26]} Bc8 {[%emt 0:10:40]} 18. Ng1 {[%emt 0:03:40]} Ndf6 {[%emt 0:03:03]} 19. Ndf3 {[%emt 0:02:24]} Ng4 {[%emt 0:04:30]} 20. Nh4 {[%emt 0:03:27]} Qd8 {[%emt 0:00:00]} 21. g3 Bh6 {[%emt 0:12:06]} 22. Ng2 {[%emt 0:09:46]} f5 23. exf5 {[%emt 0:05:45]} gxf5 {[%emt 0:00:56]} 24. Bxf5 {[%emt 0:00:59]} Bxf5 {[%emt 0:00:28]} 25. Rxf5 {[%emt 0:01:55]} Rxf5 {[%emt 0:00:00]} 26. Qxf5 {[%emt 0:01:20]} Qd7 {[%emt 0:02:04]} 27. Nh4 {[%emt 0:05:33]} Qxf5 {[%emt 0:00:00]} 28. Nxf5 {[%emt 0:01:07]} Bg5 {[%emt 0:02:19]} 29. Nf3 {[%emt 0:00:00]} Rf8 30. Nxg5 {[%emt 0:00:58]} Rxf5 {[%emt 0:01:09]} 31. Ne4 {[%emt 0:00:00]} Ng7 32. Kg2 {[%emt 0:02:46]} Kf8 {[%emt 0:02:21]} 33. h3 Nh6 {[%emt 0:00:36]} 34. Nxc5 Nf7 {[%emt 0:01:35]} 35. Nxa6 {[%emt 0:00:17]} Ke7 {[%emt 0:00:18]} 36. Nxb4 {[%emt 0:00:17]} Rg5 {[%emt 0:01:39]} 37. h4 {[%emt 0:00:00]} Rh5 38. a4 {[%emt 0:01:35]} Kd6 {[%emt 0:00:33]} 39. a5 {[%emt 0:00:42]} Ne8 {[%emt 0:01:00]} 40. Nd3 {[%emt 0:00:23]} Nc7 {[%emt 0:01:09]} 41. Kf3 {[%emt 0:01:18]} Rf5+ 42. Kg2 {[%emt 0:00:23]} Rh5 {[%emt 0:00:13]} 43. b4 {[%emt 0:01:21]} Na6 {[%emt 0:00:54]} 44. b5 {[%emt 0:00:00]} Nc5 {[%emt 0:00:04]} 45. Ba3 {[%emt 0:00:31]} 1-0

[Event "Catalan Youth-ch 2020"]
[Site "Salou"]
[Date "2020.09.05"]
[Round "1.7"]
[White "Travesset Sagre, Jan"]
[Black "Insa Pujolar, Marti"]
[Result "1/2-1/2"]
[ECO "B12"]
[WhiteElo "2093"]
[BlackElo "1672"]
[Annotator "ChessBase"]
[PlyCount "277"]
[EventDate "2020.09.07"]
[EventType "swiss"]
[EventCountry "ESP"]
[SourceTitle "playchess.com"]
[Source "ChessBase"]
[SourceQuality "1"]
[TimeControl "5400+30"]

1. e4 {[%emt 0:00:00]} c6 {[%emt 0:00:25]} 2. d4 {[%emt 0:01:29]} d5 {[%emt 0:00:06]} 3. e5 {[%emt 0:01:09]} c5 {[%emt 0:00:06]} 4. dxc5 {[%emt 0:00:48]} e6 {[%emt 0:00:06]} 5. Be3 {[%emt 0:03:23]} Nh6 {[%emt 0:01:25]} 6. Nf3 {[%emt 0:01:31]} Nf5 {[%emt 0:05:16]} 7. Bd4 {[%emt 0:03:26]} Bd7 {[%emt 0:00:54]} 8. c3 {[%emt 0:00:36]} Nc6 {[%emt 0:04:25]} 9. Bd3 {[%emt 0:03:57]} Nfxd4 {[%emt 0:01:50]} 10. cxd4 {[%emt 0:00:10]} b6 {[%emt 0:00:05]} 11. cxb6 {[%emt 0:06:35]} Qxb6 {[%emt 0:00:42]} 12. O-O {[%emt 0:00:20]} Nxd4 {[%emt 0:00:57]} 13. Nxd4 {[%emt 0:06:19]} Qxd4 {[%emt 0:03:26]} 14. Nc3 {[%emt 0:12:30]} Bc5 {[%emt 0:05:55]} 15. Bb5 {[%emt 0:28:24]} Bxb5 {[%emt 0:32:41]} 16. Nxb5 {[%emt 0:01:11]} Qxd1 {[%emt 0:00:23]} 17. Rfxd1 {[%emt 0:00:42]} Kd7 {[%emt 0:11:34]} 18. Nc3 {[%emt 0:03:17]} Rhc8 {[%emt 0:01:59]} 19. Na4 {[%emt 0:00:00]} Be7 {[%emt 0:00:00]} 20. Rd2 {[%emt 0:12:02]} Rc4 {[%emt 0:04:27]} 21. Nc3 {[%emt 0:00:00]} Bb4 {[%emt 0:02:42]} 22. Rd3 {[%emt 0:00:00]} Rac8 {[%emt 0:01:06]} 23. Nd1 {[%emt 0:00:00]} Re4 {[%emt 0:03:42]} 24. Re3 {[%emt 0:04:13]} Rc2 {[%emt 0:02:42]} 25. Rxe4 {[%emt 0:00:00]} dxe4 {[%emt 0:00:01]} 26. Rb1 {[%emt 0:01:36]} Bc5 {[%emt 0:01:48]} 27. Ne3 {[%emt 0:02:06]} Bxe3 {[%emt 0:02:05]} 28. fxe3 {[%emt 0:02:04]} Ke7 {[%emt 0:03:16]} 29. Kf1 {[%emt 0:00:00]} Rc5 {[%emt 0:00:20]} 30. Re1 {[%emt 0:00:00]} Rxe5 {[%emt 0:00:18]} 31. Rc1 {[%emt 0:00:00]} Kd7 {[%emt 0:00:11]} 32. Rc4 {[%emt 0:00:00]} Rb5 {[%emt 0:01:27]} 33. b4 {[%emt 0:00:00]} f5 {[%emt 0:00:49]} 34. a4 {[%emt 0:01:56]} Rb7 {[%emt 0:04:27]} 35. Rd4+ {[%emt 0:00:00]} Ke7 {[%emt 0:00:00]} 36. Rc4 {[%emt 0:00:00]} Kd6 {[%emt 0:02:04]} 37. Rd4+ {[%emt 0:00:00]} Ke5 {[%emt 0:00:00]} 38. Rc4 {[%emt 0:00:00]} g5 {[%emt 0:01:16]} 39. g3 {[%emt 0:00:00]} h5 {[%emt 0:02:24]} 40. b5 {[%emt 0:00:49]} Kd5 {[%emt 0:06:54]} 41. Rc8 {[%emt 0:00:00]} Rb6 {[%emt 0:00:00]} 42. Ra8 {[%emt 0:00:00]} Rb7 {[%emt 0:01:37]} 43. Rc8 {[%emt 0:02:48]} a6 {[%emt 0:00:00]} 44. bxa6 {[%emt 0:00:06]} Ra7 {[%emt 0:00:00]} 45. Rd8+ {[%emt 0:01:10]} Ke5 {[%emt 0:00:00]} 46. Rb8 {[%emt 0:00:13]} Rxa6 {[%emt 0:00:00]} 47. Rb5+ {[%emt 0:00:05]} Kd6 {[%emt 0:00:00]} 48. a5 {[%emt 0:00:29]} Rc6 {[%emt 0:00:28]} 49. Rb8 {[%emt 0:02:32]} Rc1+ {[%emt 0:00:00]} 50. Kf2 {[%emt 0:00:20]} Rc2+ {[%emt 0:00:00]} 51. Kg1 {[%emt 0:00:20]} Ra2 {[%emt 0:00:00]} 52. Rb6+ {[%emt 0:00:59]} Kd5 {[%emt 0:00:00]} 53. a6 {[%emt 0:00:18]} h4 {[%emt 0:00:00]} 54. gxh4 {[%emt 0:00:23]} gxh4 {[%emt 0:00:00]} 55. h3 {[%emt 0:00:17]} Ra5 {[%emt 0:00:00]} 56. Kf1 {[%emt 0:00:50]} Ke5 {[%emt 0:00:45]} 57. Kf2 {[%emt 0:00:00]} Ra2+ {[%emt 0:00:38]} 58. Kf1 {[%emt 0:00:13]} Ra1+ {[%emt 0:00:34]} 59. Kf2 {[%emt 0:00:07]} Ra2+ {[%emt 0:00:03]} 60. Kf1 {[%emt 0:00:07]} Ra5 {[%emt 0:00:02]} 61. Kf2 {[%emt 0:00:06]} f4 {[%emt 0:01:29]} 62. exf4+ {[%emt 0:00:10]} Kxf4 {[%emt 0:00:00]} 63. Rxe6 {[%emt 0:00:11]} Ra2+ {[%emt 0:00:02]} 64. Kf1 {[%emt 0:00:31]} Ke3 {[%emt 0:01:18]} 65. Rb6 {[%emt 0:02:52]} Ra3 {[%emt 0:00:21]} 66. Rh6 {[%emt 0:01:09]} Ra1+ {[%emt 0:00:41]} 67. Kg2 {[%emt 0:00:06]} Ra2+ {[%emt 0:00:02]} 68. Kf1 {[%emt 0:00:09]} Kf3 {[%emt 0:00:24]} 69. Rf6+ {[%emt 0:00:52]} Kg3 {[%emt 0:00:03]} 70. Rg6+ {[%emt 0:01:28]} Kf3 {[%emt 0:00:03]} 71. Rf6+ {[%emt 0:00:09]} Ke3 {[%emt 0:00:03]} 72. Rh6 {[%emt 0:00:12]} Ra1+ {[%emt 0:02:32]} 73. Kg2 {[%emt 0:00:22]} Kd3 {[%emt 0:00:32]} 74. Rd6+ {[%emt 0:00:57]} Ke2 {[%emt 0:00:07]} 75. Re6 {[%emt 0:00:28]} e3 {[%emt 0:01:13]} 76. Rd6 {[%emt 0:00:57]} Ra2 {[%emt 0:01:41]} 77. Re6 {[%emt 0:03:49]} Ra5 {[%emt 0:00:00]} 78. Rd6 {[%emt 0:00:41]} Rg5+ {[%emt 0:00:00]} 79. Kh2 {[%emt 0:00:06]} Rg7 {[%emt 0:00:00]} 80. Rb6 {[%emt 0:01:20]} Kf2 {[%emt 0:00:30]} 81. Rf6+ {[%emt 0:01:18]} Ke1 {[%emt 0:00:04]} 82. Rb6 {[%emt 0:00:18]} Ra7 {[%emt 0:00:17]} 83. Kg2 {[%emt 0:00:40]} e2 {[%emt 0:00:38]} 84. Rb1+ {[%emt 0:00:42]} Kd2 {[%emt 0:00:03]} 85. Rb2+ {[%emt 0:00:06]} Kd1 {[%emt 0:00:05]} 86. Rb1+ {[%emt 0:00:30]} Kc2 {[%emt 0:00:08]} 87. Ra1 {[%emt 0:00:13]} Rxa6 {[%emt 0:01:00]} 88. Rxa6 {[%emt 0:00:21]} e1=Q {[%emt 0:00:05]} 89. Ra2+ {[%emt 0:00:26]} Kd3 {[%emt 0:00:12]} 90. Ra3+ {[%emt 0:00:16]} Ke4 {[%emt 0:00:05]} 91. Ra4+ {[%emt 0:00:13]} Kf5 {[%emt 0:00:22]} 92. Rg4 {[%emt 0:00:18]} Qe2+ {[%emt 0:00:12]} 93. Kh1 {[%emt 0:00:30]} Qf2 {[%emt 0:00:39]} 94. Rg5+ {[%emt 0:00:11]} Ke4 {[%emt 0:00:48]} 95. Rg4+ {[%emt 0:00:24]} Kd3 {[%emt 0:00:26]} 96. Rg1 {[%emt 0:01:10]} Ke3 {[%emt 0:00:45]} 97. Rg4 {[%emt 0:00:17]} Qe2 {[%emt 0:00:48]} 98. Rg1 {[%emt 0:01:06]} Kf3 {[%emt 0:00:51]} 99. Rg4 {[%emt 0:00:12]} Qe6 {[%emt 0:01:08]} 100. Kh2 {[%emt 0:00:19]} Qd6+ {[%emt 0:01:18]} 101. Kh1 {[%emt 0:00:10]} Qd1+ {[%emt 0:00:14]} 102. Kh2 {[%emt 0:00:06]} Qc2+ {[%emt 0:00:04]} 103. Kh1 {[%emt 0:00:08]} Qc1+ {[%emt 0:00:10]} 104. Kh2 {[%emt 0:00:18]} Qb2+ {[%emt 0:00:03]} 105. Kh1 {[%emt 0:00:15]} Qb1+ {[%emt 0:01:29]} 106. Kh2 {[%emt 0:00:07]} Qb7 {[%emt 0:00:48]} 107. Kg1 {[%emt 0:01:16]} Qc7 {[%emt 0:00:36]} 108. Kh1 {[%emt 0:00:27]} Qc5 {[%emt 0:00:35]} 109. Kh2 {[%emt 0:00:14]} Kf2 {[%emt 0:00:24]} 110. Rf4+ {[%emt 0:00:10]} Ke3 {[%emt 0:00:02]} 111. Rg4 {[%emt 0:00:09]} Kf3 {[%emt 0:00:22]} 112. Kh1 {[%emt 0:00:22]} Kf2 {[%emt 0:00:38]} 113. Rg2+ {[%emt 0:00:35]} Kf1 {[%emt 0:00:08]} 114. Rg4 {[%emt 0:00:07]} Qd5+ {[%emt 0:01:27]} 115. Kh2 {[%emt 0:00:07]} Qe5+ {[%emt 0:00:21]} 116. Kh1 {[%emt 0:00:19]} Qe3 {[%emt 0:00:33]} 117. Kh2 {[%emt 0:00:26]} Qf3 {[%emt 0:00:42]} 118. Rg1+ {[%emt 0:00:23]} Ke2 {[%emt 0:00:02]} 119. Rg2+ {[%emt 0:00:14]} Ke3 {[%emt 0:00:46]} 120. Rg4 {[%emt 0:00:07]} Qf1 {[%emt 0:00:35]} 121. Re4+ {[%emt 0:00:33]} Kd3 {[%emt 0:00:15]} 122. Rd4+ {[%emt 0:00:06]} Kc3 {[%emt 0:00:13]} 123. Rg4 {[%emt 0:00:06]} Qf3 {[%emt 0:00:50]} 124. Rg1 {[%emt 0:00:26]} Kd2 {[%emt 0:00:23]} 125. Rg4 {[%emt 0:00:30]} Ke2 {[%emt 0:00:46]} 126. Rg1 {[%emt 0:01:21]} Qf4+ {[%emt 0:00:23]} 127. Kh1 {[%emt 0:00:08]} Qe4+ {[%emt 0:00:15]} 128. Kh2 {[%emt 0:00:09]} Qe5+ {[%emt 0:00:51]} 129. Kh1 {[%emt 0:00:08]} Kf3 {[%emt 0:00:09]} 130. Rg4 {[%emt 0:00:30]} Qd6 {[%emt 0:00:11]} 131. Rg1 {[%emt 0:00:33]} Qe6 {[%emt 0:00:53]} 132. Kh2 {[%emt 0:00:53]} Qe4 {[%emt 0:00:56]} 133. Rf1+ {[%emt 0:00:42]} Ke2 {[%emt 0:00:08]} 134. Rg1 {[%emt 0:00:06]} Qf4+ {[%emt 0:00:27]} 135. Kh1 {[%emt 0:00:09]} Qf3+ {[%emt 0:00:23]} 136. Kh2 {[%emt 0:00:09]} Qd5 {[%emt 0:00:38]} 137. Rg2+ {[%emt 0:00:40]} Kf1 {[%emt 0:00:14]} 138. Rf2+ {[%emt 0:00:12]} Ke1 {[%emt 0:00:03]} 139. Ra2 {[%emt 0:00:40]} 1/2-1/2

[Event "Catalan Youth-ch 2020"]
[Site "Salou"]
[Date "2020.09.05"]
[Round "1.8"]
[White "Higueras Ruiz, Blai"]
[Black "Roca Planas, Edgar"]
[Result "0-1"]
[ECO "D13"]
[WhiteElo "1643"]
[BlackElo "2059"]
[Annotator "ChessBase"]
[PlyCount "86"]
[EventDate "2020.09.07"]
[EventType "swiss"]
[EventCountry "ESP"]
[SourceTitle "playchess.com"]
[Source "ChessBase"]
[SourceQuality "1"]
[TimeControl "5400+30"]

1. Nf3 {[%emt 0:00:22]} Nf6 {[%emt 0:00:11]} 2. c4 {[%emt 0:00:40]} c6 {[%emt 0:01:13]} 3. Nc3 {[%emt 0:00:09]} d5 {[%emt 0:00:49]} 4. cxd5 {[%emt 0:00:46]} cxd5 {[%emt 0:01:42]} 5. d4 {[%emt 0:00:30]} Nc6 {[%emt 0:00:32]} 6. g3 {[%emt 0:05:46]} Bf5 {[%emt 0:05:42]} 7. Bg2 {[%emt 0:04:31]} e6 {[%emt 0:08:02]} 8. Bf4 {[%emt 0:04:39]} Qb6 {[%emt 0:08:09]} 9. Na4 {[%emt 0:04:09]} Qa5+ {[%emt 0:05:12]} 10. Bd2 {[%emt 0:01:46]} Bb4 {[%emt 0:02:39]} 11. Bc3 {[%emt 0:06:35]} Ne4 {[%emt 0:04:22]} 12. Rc1 {[%emt 0:02:55]} Nxc3 {[%emt 0:00:02]} 13. Nxc3 {[%emt 0:01:12]} Qxa2 {[%emt 0:02:10]} 14. Qd2 {[%emt 0:05:34]} Qb3 {[%emt 0:02:17]} 15. O-O {[%emt 0:02:14]} h6 {[%emt 0:08:40]} 16. Kh1 {[%emt 0:05:02]} Bh7 {[%emt 0:01:13]} 17. e3 {[%emt 0:01:44]} O-O {[%emt 0:01:32]} 18. Qe2 {[%emt 0:00:21]} a6 {[%emt 0:12:38]} 19. Qd1 {[%emt 0:07:26]} Qxb2 {[%emt 0:00:19]} 20. Na4 {[%emt 0:00:10]} Qa3 {[%emt 0:00:41]} 21. Ra1 {[%emt 0:00:08]} Qd3 {[%emt 0:00:08]} 22. Qxd3 {[%emt 0:01:02]} Bxd3 {[%emt 0:00:29]} 23. Rfd1 {[%emt 0:01:39]} Bc2 {[%emt 0:00:09]} 24. Rdc1 {[%emt 0:00:27]} Bxa4 {[%emt 0:00:02]} 25. Rxa4 {[%emt 0:01:51]} b5 {[%emt 0:00:46]} 26. Raa1 {[%emt 0:01:12]} Rfc8 {[%emt 0:00:10]} 27. Rab1 {[%emt 0:04:04]} Bd6 {[%emt 0:00:20]} 28. Bf1 {[%emt 0:06:00]} Rab8 {[%emt 0:01:38]} 29. Rc2 {[%emt 0:02:40]} Nb4 {[%emt 0:01:09]} 30. Rcb2 {[%emt 0:02:11]} Nc2 {[%emt 0:00:51]} 31. Bd3 {[%emt 0:00:10]} Na3 {[%emt 0:00:19]} 32. Ra1 {[%emt 0:02:23]} Rb6 {[%emt 0:00:28]} 33. Rba2 {[%emt 0:00:29]} Rc3 {[%emt 0:00:36]} 34. Bf1 {[%emt 0:00:17]} b4 {[%emt 0:00:26]} 35. Nd2 {[%emt 0:03:44]} a5 {[%emt 0:01:06]} 36. Rb2 {[%emt 0:01:56]} Nc4 {[%emt 0:00:42]} 37. Nxc4 {[%emt 0:00:05]} dxc4 {[%emt 0:00:06]} 38. Rxa5 {[%emt 0:00:09]} Rc1 {[%emt 0:00:02]} 39. Kg2 {[%emt 0:01:17]} b3 {[%emt 0:01:42]} 40. Ra4 {[%emt 0:01:14]} c3 {[%emt 0:00:15]} 41. Rb1 {[%emt 0:00:03]} Rxb1 {[%emt 0:00:06]} 42. Bd3 {[%emt 0:00:17]} c2 {[%emt 0:00:08]} 43. Ra8+ Bf8 {[%emt 0:00:23]} 0-1

[Event "Catalan Youth-ch 2020"]
[Site "Salou"]
[Date "2020.09.06"]
[Round "2.1"]
[White "Bernado Lopez, Roger"]
[Black "Gardner, Leo"]
[Result "1-0"]
[ECO "B96"]
[WhiteElo "2155"]
[BlackElo "1641"]
[Annotator "ChessBase"]
[PlyCount "111"]
[EventDate "2020.09.07"]
[EventType "swiss"]
[EventCountry "ESP"]
[SourceTitle "playchess.com"]
[Source "ChessBase"]
[SourceQuality "1"]
[TimeControl "5400+30"]

1. e4 {[%emt 0:00:00]} c5 {[%emt 0:00:00]} 2. Nf3 {[%emt 0:00:00]} d6 {[%emt 0:00:00]} 3. d4 {[%emt 0:00:00]} cxd4 {[%emt 0:00:00]} 4. Nxd4 {[%emt 0:00:00]} Nf6 {[%emt 0:00:00]} 5. Nc3 {[%emt 0:00:00]} a6 {[%emt 0:00:04]} 6. Bg5 {[%emt 0:00:00]} Nbd7 {[%emt 0:00:08]} 7. Qe2 {[%emt 0:00:06]} e6 {[%emt 0:05:27]} 8. f4 {[%emt 0:00:05]} Qc7 {[%emt 0:04:38]} 9. O-O-O {[%emt 0:00:09]} Be7 {[%emt 0:03:02]} 10. g4 {[%emt 0:00:12]} b5 {[%emt 0:05:41]} 11. a3 {[%emt 0:00:05]} Bb7 {[%emt 0:01:49]} 12. Bh4 {[%emt 0:00:04]} O-O-O {[%emt 0:16:24]} 13. g5 {[%emt 0:01:45]} Ne8 {[%emt 0:04:39]} 14. Bg3 {[%emt 0:07:05]} Nb6 {[%emt 0:22:50]} 15. h4 {[%emt 0:11:14]} d5 {[%emt 0:01:18]} 16. exd5 {[%emt 0:07:49]} Nxd5 {[%emt 0:03:03]} 17. Nxd5 {[%emt 0:00:28]} Bxd5 {[%emt 0:03:21]} 18. Bg2 {[%emt 0:02:08]} Bxg2 {[%emt 0:05:36]} 19. Qxg2 {[%emt 0:00:08]} Rd5 {[%emt 0:06:49]} 20. Nb3 {[%emt 0:07:12]} Qb7 {[%emt 0:02:26]} 21. Rxd5 {[%emt 0:00:34]} Qxd5 {[%emt 0:00:15]} 22. Qxd5 {[%emt 0:02:08]} exd5 {[%emt 0:00:02]} 23. Nd4 {[%emt 0:11:41]} Nd6 {[%emt 0:05:36]} 24. f5 {[%emt 0:08:22]} Ne4 {[%emt 0:01:33]} 25. Bf4 {[%emt 0:04:14]} Kd7 {[%emt 0:00:59]} 26. Nf3 {[%emt 0:03:52]} Bd6 {[%emt 0:01:39]} 27. Be5 {[%emt 0:04:59]} f6 {[%emt 0:02:57]} 28. Bxd6 {[%emt 0:04:00]} Nxd6 {[%emt 0:01:25]} 29. Nd4 {[%emt 0:05:08]} Ne4 {[%emt 0:01:32]} 30. Rg1 {[%emt 0:01:45]} fxg5 {[%emt 0:00:59]} 31. hxg5 {[%emt 0:00:22]} Rf8 {[%emt 0:00:31]} 32. g6 {[%emt 0:05:18]} h6 {[%emt 0:00:32]} 33. Ne6 {[%emt 0:00:48]} Rxf5 {[%emt 0:00:37]} 34. Nxg7 {[%emt 0:00:29]} Rg5 {[%emt 0:00:18]} 35. Rxg5 {[%emt 0:00:47]} hxg5 {[%emt 0:00:19]} 36. Nf5 {[%emt 0:01:35]} Nf6 {[%emt 0:00:54]} 37. g7 {[%emt 0:01:43]} Ng8 {[%emt 0:00:18]} 38. Ne3 {[%emt 0:02:47]} Ke6 {[%emt 0:00:25]} 39. Kd2 {[%emt 0:00:30]} d4 {[%emt 0:00:44]} 40. Nf1 {[%emt 0:00:54]} Kf5 {[%emt 0:00:30]} 41. Kd3 {[%emt 0:00:50]} Ke5 {[%emt 0:00:36]} 42. Nh2 {[%emt 0:01:51]} Kf4 {[%emt 0:00:29]} 43. Kxd4 {[%emt 0:00:42]} g4 {[%emt 0:00:30]} 44. Nxg4 {[%emt 0:01:05]} Kxg4 {[%emt 0:00:06]} 45. Kc5 {[%emt 0:00:10]} Kg5 {[%emt 0:00:20]} 46. Kb6 {[%emt 0:00:05]} Kg6 {[%emt 0:00:15]} 47. Kxa6 {[%emt 0:00:05]} Kxg7 {[%emt 0:00:05]} 48. Kxb5 {[%emt 0:00:06]} Kf7 {[%emt 0:00:11]} 49. a4 {[%emt 0:03:22]} Ne7 {[%emt 0:01:08]} 50. a5 {[%emt 0:00:34]} Nc8 {[%emt 0:00:29]} 51. a6 {[%emt 0:01:10]} Ke7 {[%emt 0:00:18]} 52. Kc6 {[%emt 0:00:23]} Kd8 {[%emt 0:00:50]} 53. Kb7 {[%emt 0:00:12]} Nd6+ {[%emt 0:00:14]} 54. Kb8 {[%emt 0:00:08]} Nc4 {[%emt 0:01:00]} 55. a7 {[%emt 0:00:13]} Nb6 {[%emt 0:00:23]} 56. a8=Q {[%emt 0:00:11]} 1-0

[Event "Catalan Youth-ch 2020"]
[Site "Salou"]
[Date "2020.09.06"]
[Round "2.2"]
[White "Dominguez Estruch, Eduard"]
[Black "Castillo Dalmau, Albert"]
[Result "0-1"]
[ECO "E22"]
[WhiteElo "1949"]
[BlackElo "2204"]
[Annotator "ChessBase"]
[PlyCount "78"]
[EventDate "2020.09.07"]
[EventType "swiss"]
[EventCountry "ESP"]
[SourceTitle "playchess.com"]
[Source "ChessBase"]
[SourceQuality "1"]
[TimeControl "5400+30"]

1. d4 {[%emt 0:00:00]} Nf6 {[%emt 0:00:00]} 2. c4 {[%emt 0:00:00]} e6 {[%emt 0:00:00]} 3. Nc3 {[%emt 0:00:00]} Bb4 4. Qc2 {[%emt 0:19:33]} Bxc3+ {[%emt 0:03:04]} 5. Qxc3 {[%emt 0:00:00]} d6 6. f3 {[%emt 0:00:00]} Nc6 7. e4 {[%emt 0:02:53]} e5 8. Ne2 {[%emt 0:15:43]} a5 {[%emt 0:31:29]} 9. Be3 {[%emt 0:00:00]} O-O 10. O-O-O {[%emt 0:00:00]} Qe7 11. d5 {[%emt 0:00:18]} Nb8 {[%emt 0:12:45]} 12. g4 {[%emt 0:10:19]} c6 {[%emt 0:02:52]} 13. dxc6 {[%emt 0:00:00]} bxc6 14. h4 {[%emt 0:02:27]} c5 15. h5 {[%emt 0:07:15]} Nc6 {[%emt 0:02:56]} 16. g5 {[%emt 0:05:54]} Ne8 {[%emt 0:12:46]} 17. Bh3 {[%emt 0:08:47]} Nd4 18. Qd3 {[%emt 0:03:28]} Be6 19. Bxe6 {[%emt 0:01:41]} fxe6 20. Nxd4 {[%emt 0:02:42]} exd4 {[%emt 0:09:52]} 21. Bd2 {[%emt 0:00:27]} e5 22. Rdf1 {[%emt 0:06:41]} Nc7 {[%emt 0:00:36]} 23. Rhg1 {[%emt 0:02:05]} Ne6 24. Rg4 {[%emt 0:02:02]} a4 25. Qa3 {[%emt 0:02:40]} Qe8 26. Rh4 {[%emt 0:04:18]} Qe7 {[%emt 0:06:31]} 27. Rg4 {[%emt 0:00:00]} Ra7 28. Rf2 {[%emt 0:00:00]} Qd7 {[%emt 0:03:24]} 29. Rf1 {[%emt 0:00:09]} Rb7 {[%emt 0:00:16]} 30. Rf2 {[%emt 0:00:44]} Rfb8 {[%emt 0:00:03]} 31. Be1 {[%emt 0:01:01]} Nf4 32. Rh2 {[%emt 0:03:00]} Qf7 33. Rc2 {[%emt 0:01:44]} Qxh5 34. Rh4 {[%emt 0:00:25]} Qxg5 35. Rch2 {[%emt 0:00:46]} Nd3+ {[%emt 0:08:36]} 36. Kd1 {[%emt 0:00:11]} Qc1+ 37. Ke2 {[%emt 0:00:25]} Qe3+ {[%emt 0:01:00]} 38. Kf1 {[%emt 0:00:48]} Qxe1+ {[%emt 0:00:00]} 39. Kg2 {[%emt 0:00:18]} Rxb2+ {[%emt 0:00:47]} 0-1